Cogmind - Beta 13 @@@ ROGUE MODE // 2024.04.12 @ 03:02:29 Player: Slavanich Result: Self-destructed Performance ------------- Evolutions (1) 500 Regions Visited (4) 800 Robots Destroyed (19) 95 Value Destroyed (474) 474 Prototype IDs (2) 40 Alien Tech Used (0) 0 Bonus (0) 0 TOTAL SCORE: 1909 Bonus ------- None Cogmind --------- Core Integrity 321/400 Matter 238/300 Energy 122/125 System Corruption 0% Temperature Cool (0) Movement Walking (190) Ox1 Location -9/Storage Parts ------- > --- POWER (1) -------- Light Ion Engine > --- PROPULSION (2) --- Aluminum Leg Aluminum Leg > --- UTILITY (4) ------ Large Storage Unit Signal Interpreter Improved Targeting Computer Core Shielding > --- WEAPON (2) ------- Light Assault Rifle Heavy Assault Rifle > --- INVENTORY (15) --- Aluminum Leg Aluminum Leg Heat Sink Large Storage Unit Small Laser Beam Rifle Assault Rifle Assault Rifle Light Assault Rifle Grenade Launcher Rocket Launcher Mini Grenade Launcher Peak State ------------ > --- POWER ------------ Light Ion Engine > --- PROPULSION ------- Aluminum Leg Aluminum Leg > --- UTILITY ---------- Heat Sink Large Storage Unit Signal Interpreter Improved Targeting Computer > --- WEAPON ----------- Light Assault Rifle Mini Grenade Launcher > --- INVENTORY -------- Light Ion Engine Aluminum Leg Aluminum Leg Heat Sink Large Storage Unit Core Shielding Small Laser Beam Rifle Assault Rifle Assault Rifle Light Assault Rifle Heavy Assault Rifle Grenade Launcher Rocket Launcher [Rating: 12] Favorites ----------- Power Light Ion Engine Engine Light Ion Engine Propulsion Wheel Leg Aluminum Leg Wheel Wheel Utility Large Storage Unit Device Heat Sink Storage Large Storage Unit Processor Signal Interpreter Protection Core Shielding Weapon Medium Laser Energy Gun Medium Laser Ballistic Gun Light Assault Rifle Launcher Mini Grenade Launcher Build | -11 -10 -10 -9 -9 ------- Run | Yrd Mat Min Mat Sto Slots Evolved 2 | . . . 2 . Power . | . . . . . Propulsion . | . . . . . Utility 2 | . . . 2 . Weapon . | . . . . . Parts Attached 18 | 5 1 1 7 4 Power 2 | 1 . . . 1 Engine 2 | 1 . . . 1 Core . | . . . . . Reactor . | . . . . . Propulsion 4 | 2 . . 2 . Treads . | . . . . . Leg 2 | . . . 2 . Wheel 2 | 2 . . . . Hover . | . . . . . Flight . | . . . . . Utility 5 | . 1 1 2 1 Device 1 | . . . 1 . Storage 1 | . 1 . . . Processor 2 | . . 1 1 . Hackware . | . . . . . Protection 1 | . . . . 1 Artifact . | . . . . . Weapon 7 | 2 . . 3 2 Energy Gun 3 | 2 . . 1 . Energy Cannon . | . . . . . Ballistic Gun 3 | . . . 2 1 Ballistic Cannon . | . . . . . Launcher 1 | . . . . 1 Special Weapon . | . . . . . Impact Weapon . | . . . . . Slashing Weapon . | . . . . . Piercing Weapon . | . . . . . Special Melee Weapon . | . . . . . Unidentified Prototypes . | . . . . . Parts Lost 2 | . . . 1 1 Power 1 | . . . . 1 Propulsion . | . . . . . Utility . | . . . . . Weapon 1 | . . . 1 . Highest Loss Streak 1 | . . . 1 1 To Critical Strikes . | . . . . . Average Slot Usage (%) 91 | . 83 88 96 100 Engine 12 | . 14 14 11 11 Leg 9 | . . . 22 22 Wheel 16 | . 28 28 . . Device 3 | . . . 11 3 Storage 12 | . 12 14 11 11 Processor 9 | . . 3 19 22 Energy Gun 19 | . 28 28 10 . Ballistic Gun 5 | . . . 11 15 Naked Turns . | . . . . . Heaviest Build 28 | 7 27 27 28 28 Greatest Support 20 | 20 20 20 20 20 Greatest Overweight (x) 1 | . 1 1 1 1 Average Overweight (x) . | . . 1 1 1 Largest Inventory Capacity 15 | 5 15 15 15 15 Average Capacity 14 | 5 13 15 15 15 Most Carried 15 | 5 13 15 14 14 Average Carried 11 | 2 8 13 12 13 Final Capacity 15 | 5 15 15 15 15 Final Carried 15 | 4 13 15 14 12 Class Distribution -------------------- 100% | Mutant Dominant Class ---------------- Mutant | -10/Materials Mutant | -10/Mines Mutant | -9/Materials Mutant | -9/Storage Resources | -11 -10 -10 -9 -9 ----------- Run | Yrd Mat Min Mat Sto Matter Collected 380 | 250 10 . 91 29 Remotely . | . . . . . Salvage Created 659 | 37 247 . 316 59 Parts 38 | 1 21 . 12 4 Haulers Intercepted . | . . . . . Recyclers Shooed . | . . . . . Parts Field Recycled . | . . . . . Retrieved Matter . | . . . . . Parts Self-Destructed . | . . . . . Prevented . | . . . . . Kills | -11 -10 -10 -9 -9 ------- Run | Yrd Mat Min Mat Sto Combat Hostiles Destroyed 15 | 1 5 . 7 2 Guns 13 | 1 5 . 7 . AOE 2 | . . . . 2 Classes Destroyed 6 | 1 4 . 1 . Worker 2 | . 1 . . 1 Builder 1 | . 1 . . . Recycler 1 | . 1 . . . Swarmer 3 | . 3 . . . Grunt 11 | 1 2 . 6 2 Duelist 1 | . . . 1 . Best Kill Streak 4 | 1 4 . 3 3 Combat Bots Only 3 | 1 3 . 3 2 Max Kills in Single Turn 2 | 1 1 . 1 2 Gunslinging . | . . . . . Exploded 1 | . . . . 1 Melee . | . . . . . Uniques/NPCs Destroyed . | . . . . . Combat | -11 -10 -10 -9 -9 -------- Run | Yrd Mat Min Mat Sto Hostile Shots Fired 64 | 4 12 . 36 12 Missed 18 | . 2 . 12 4 Damage Taken 593 | 46 88 . 327 132 Core 102 | 23 . . 54 25 Absorbed by Shields . | . . . . . Redirected to Shielding 4 | . . . . 4 Core Remaining (%) 90 | 90 . 90 . . Volleys Fired 63 | 3 20 . 32 8 Largest 2 | 2 2 . 2 2 Hottest 100 | 100 100 . 100 43 Shots Fired 116 | 6 34 . 64 12 Gun 112 | 6 34 . 64 8 Cannon . | . . . . . Launcher 4 | . . . . 4 Special . | . . . . . Kinetic 24 | . . . 16 8 Thermal 88 | 6 34 . 48 . Explosive 4 | . . . . 4 Electromagnetic . | . . . . . Robot Hit Streak 20 | 3 10 . 20 4 Robot Miss Streak 3 | 1 1 . 3 1 Penetration Max . | . . . . . Secondary Targets 2 | . 1 . 1 . Max Gunslinging Chain 1 | . 1 . 1 . Shots Hit Robots 77 | 4 25 . 42 6 Core Hits 36 | 2 12 . 16 6 Critical Kills . | . . . . . Critical Parts Destroyed . | . . . . . Critical Strikes 5 | . 2 . 3 . Burn 5 | . 2 . 3 . Melee Attacks . | . . . . . Impact . | . . . . . Slashing . | . . . . . Piercing . | . . . . . Sneak Attacks . | . . . . . Combat Hostiles . | . . . . . Follow-up Attacks . | . . . . . Damage Inflicted 1050 | 51 312 . 475 212 Guns 901 | 51 312 . 475 63 Cannons . | . . . . . Explosions 149 | . . . . 149 Melee . | . . . . . Ramming . | . . . . . Kinetic 127 | . . . 64 63 Thermal 774 | 51 312 . 411 . Explosive 149 | . . . . 149 Electromagnetic . | . . . . . Impact . | . . . . . Slashing . | . . . . . Piercing . | . . . . . Highest Corruption . | . . . . . Average Corruption . | . . . . . Corruption Purged . | . . . . . Corruption Blocked . | . . . . . Overload Shots . | . . . . . Overflow Damage . | . . . . . Projectiles . | . . . . . Explosions . | . . . . . Melee . | . . . . . Knockbacks . | . . . . . Impact . | . . . . . Kinetic . | . . . . . Secondary . | . . . . . Self-Inflicted Damage 16 | . . . . 16 Shots 1 | . . . . 1 Rammed . | . . . . . Targets Rammed . | . . . . . Kicked . | . . . . . Crushed . | . . . . . Highest Temperature 215 | 141 215 . 24 . Average Temperature 68 | 73 89 . 12 . Received Heat Transfer 201 | 24 18 . 126 33 Effects 1 | . 1 . . . Interference 1 | . 1 . . . Siege Activations . | . . . . . Robots Corrupted . | . . . . . Combat Hostiles . | . . . . . Parts Fried . | . . . . . Impact Corruptions . | . . . . . Robots Melted . | . . . . . Combat Hostiles . | . . . . . Parts Melted 2 | . 1 . 1 . Heat Transferred 2593 | 148 1073 . 1372 . Parts Sabotaged . | . . . . . Parts Stolen . | . . . . . Parts Stripped . | . . . . . Power Chain Reactions . | . . . . . Alert | -11 -10 -10 -9 -9 ------- Run | Yrd Mat Min Mat Sto Peak Influence 230 | 20 212 82 230 98 Initial 82 | . 13 82 . 12 Average 76 | 3 110 56 100 46 Maximum Alert Level 1 | . 1 . 1 . Low Security (%) 94 | 100 84 100 91 100 Level 1 5 | . 15 . 8 . Level 2 . | . . . . . Level 3 . | . . . . . Level 4 . | . . . . . Level 5 . | . . . . . High Security . | . . . . . Max Security . | . . . . . Squads Dispatched 8 | . 1 . 5 2 Investigation 2 | . 1 . 1 . Extermination . | . . . . . Reinforcement 5 | . . . 4 1 Assault . | . . . . . Garrison 1 | . . . . 1 Intercept . | . . . . . Searches Triggered . | . . . . . Construction Impeded . | . . . . . Haulers Reinforced . | . . . . . Active Scanning Responses . | . . . . . Cargo Convoy Interrupts . | . . . . . Stealth | -11 -10 -10 -9 -9 --------- Run | Yrd Mat Min Mat Sto Distress Signals 3 | . . . 3 . Communications Jammed . | . . . . . Distress Signals . | . . . . . Times Spotted 23 | 1 7 . 10 5 Peak Tracking Total 4 | 1 4 . 3 3 Tactical Retreats 1 | . . . 1 . Traps | -11 -10 -10 -9 -9 ------- Run | Yrd Mat Min Mat Sto Traps Triggered 1 | . . . 1 . Indirectly . | . . . . . Trap Hack Attempts . | . . . . . Triggered . | . . . . . Disarmed 3 | . . . . 3 Reprogrammed . | . . . . . Reused . | . . . . . Traps Extracted . | . . . . . Installed . | . . . . . Triggered . | . . . . . Machines | -11 -10 -10 -9 -9 ---------- Run | Yrd Mat Min Mat Sto Machines Disabled 1 | . . . . 1 Max in Single Turn 1 | . . . . 1 Machines Repaired . | . . . . . Machines Dismantled . | . . . . . Machines Sabotaged . | . . . . . Overloaded Fab Kills . | . . . . . Hacking | -11 -10 -10 -9 -9 --------- Run | Yrd Mat Min Mat Sto Machines Accessed 4 | . 1 . 1 2 Terminals 4 | . 1 . 1 2 Fabricators . | . . . . . Repair Stations . | . . . . . Recycling Units . | . . . . . Scanalyzers . | . . . . . Garrison Access . | . . . . . Total Hacks 12 | . 3 . 2 7 Successful 6 | . 2 . . 4 Failed 6 | . 1 . 2 3 Catastrophic 1 | . . . 1 . Database Lockouts . | . . . . . Manual . | . . . . . Terminals 12 | . 3 . 2 7 Fabricators . | . . . . . Repair Stations . | . . . . . Recycling Units . | . . . . . Scanalyzers . | . . . . . Garrison Access . | . . . . . Terminal Hacks 6 | . 2 . . 4 Prototype ID Bank 1 | . . . . 1 Alert Level 1 | . 1 . . . Locate Traps 2 | . 1 . . 1 Disarm Traps 1 | . . . . 1 Hauler Manifests 1 | . . . . 1 Fabricator Hacks . | . . . . . Repair Station Hacks . | . . . . . Recycling Unit Hacks . | . . . . . Scanalyzer . | . . . . . Garrison Access Hacks . | . . . . . Unauthorized Hacks . | . . . . . Terminals . | . . . . . Fabricators . | . . . . . Repair Stations . | . . . . . Recycling Units . | . . . . . Scanalyzers . | . . . . . Garrison Access . | . . . . . Data Cores Recovered . | . . . . . Used . | . . . . . Hacking Detections 3 | . 1 . 1 1 Full Trace Events 2 | . 1 . 1 . Feedback Events . | . . . . . Feedback Blocked . | . . . . . Robot Schematics Acquired . | . . . . . Robots Built . | . . . . . Authchips . | . . . . . Time . | . . . . . Total Robot Build Rating . | . . . . . Part Schematics Acquired . | . . . . . Parts Built . | . . . . . Authchips . | . . . . . Time . | . . . . . Total Part Build Rating . | . . . . . Parts Repaired . | . . . . . Time . | . . . . . Parts Recycled . | . . . . . Recycled Matter . | . . . . . Retrieved Matter . | . . . . . Retrieved Components . | . . . . . Parts Scanalyzed . | . . . . . Part Schematics Acquired . | . . . . . Parts Damaged . | . . . . . Bothacking | -11 -10 -10 -9 -9 ------------ Run | Yrd Mat Min Mat Sto Used RIF Installer . | . . . . . Robots Hacked . | . . . . . Non-combat . | . . . . . Combat . | . . . . . Robot Hacks Applied . | . . . . . Relay Couplers Released . | . . . . . Fabnet Peak Effective % . | . . . . . Robots Rewired . | . . . . . Allies Hacked . | . . . . . Hacks Repelled . | . . . . . Allies | -11 -10 -10 -9 -9 -------- Run | Yrd Mat Min Mat Sto Total Allies . | . . . . . Largest Group . | . . . . . Highest-Rated Group . | . . . . . Highest-Rated Ally . | . . . . . Total Orders . | . . . . . Ally Attacks . | . . . . . Total Damage . | . . . . . Kills . | . . . . . Allies Corrupted . | . . . . . Allies Melted . | . . . . . Intel | -11 -10 -10 -9 -9 ------- Run | Yrd Mat Min Mat Sto Robot Analysis Total . | . . . . . Derelict Logs Recovered 1 | . . 1 . . Drone Launches . | . . . . . Drone Recoveries . | . . . . . Exploration | -11 -10 -10 -9 -9 ------------- Run | Yrd Mat Min Mat Sto Turns Passed 1592 | 71 314 576 463 168 Spaces Moved 1094 | 67 246 529 177 75 Core 17 | 17 . . . . Treads . | . . . . . Legs 252 | . . . 177 75 Wheels 825 | 50 246 529 . . Hover . | . . . . . Flight . | . . . . . Fastest Speed 50 | 50 80 95 190 190 Average Speed 114 | 72 92 95 190 190 Slowest Speed 190 | 80 95 95 190 190 Overloaded Moves . | . . . . . Propulsion Burnouts . | . . . . . Robots Hopped . | . . . . . Cave-ins Triggered . | . . . . . Exploration Rate (%) 34 | 6 37 94 19 17 Regions Visited 4 Branch Regions 2 Pre-discovered Areas . | . . . . . Known Exits Taken 2 | . . 1 1 . Unknown Exits Taken 2 | 1 1 . . . Scrap Searched 2 | . . 2 . . Spaces Dug . | . . . . . Terrain Destroyed 30 | . . . . 30 Melee . | . . . . . Projectile . | . . . . . AOE 30 | . . . . 30 Terrain Rammed . | . . . . . Walls Destroyed . | . . . . . Machines Disabled . | . . . . . Actions | -11 -10 -10 -9 -9 --------- Run | Yrd Mat Min Mat Sto Total 1316 | 83 298 602 245 88 Wait 112 | . 22 70 20 . Move 1090 | 66 245 528 176 75 Hop . | . . . . . Pick Up 28 | 9 10 3 6 . Fast Attach . | . . . . . Attach 16 | 5 1 1 7 2 Detach . | . . . . . Swap 2 | . . . . 2 Drop 5 | . . . 4 1 Fire 63 | 3 20 . 32 8 Melee . | . . . . . Ram . | . . . . . Kick . | . . . . . Crush . | . . . . . Escape Stasis . | . . . . . Rewire . | . . . . . Trap . | . . . . . Miscellaneous . | . . . . . Route ------- -11/Scrapyard -10/Materials -10/Mines (discovered 2 exits: *Mat x2) -9/Materials -9/Storage History --------- Turn | Location | Event 2 | -11/Scrapyard | Met Revision 17 52 | -11/Scrapyard | Discovered new exit (range 8) 72 | -11/Scrapyard | Entered Materials 217 | -10/Materials | Discovered new exit (range 11) 317 | -10/Materials | Build established: Mutant 386 | -10/Materials | Entered Mines 400 | -10/Mines | Met a Derelict bent on vengeance 557 | -10/Mines | Discovered new exit (range 8) 614 | -10/Mines | Discovered new exit (range 7) 856 | -10/Mines | Identified exit to Materials 879 | -10/Mines | Learned Materials interactive machine intel 942 | -10/Mines | Received a Rocket Launcher from a helpful Derelict 962 | -10/Mines | Entered Materials 962 | -9/Materials | Evolved 2 slots: Utility x2 963 | -9/Materials | Loaded intel: 18 interactive machine locations 1319 | -9/Materials | Discovered new exit (range 3) 1323 | -9/Materials | Identified exit to Storage 1425 | -9/Materials | Entered Storage 1593 | -9/Storage | Self-destructed Last Messages --------------- A-02 Transporter 6x Imp. EM Shotgun A-02 Transporter 3x Imp. Assault Rifle 2x Cld. Ion Engine (2 escorts) 01534_ K-01 Serf collects debris. 01543_ K-01 Serf destroyed. 01543_ G-34 Mercenary destroyed. 01549_ The unstable cave ceiling collapses. 01566_ Acquired 21 matter. 01568_ Acquired 8 matter. 01573_ The unstable cave ceiling collapses. 01574_ R-06 Scavenger collects Sml. Laser. 01578_ R-06 Scavenger collects Ion Engine. 01580_ Y-45 Defender emerges from the garrison. 01581_ R-06 Scavenger collects Heat Sink. 01583_ ALERT: Hostiles spotted, dispatching reinforcements to Terminal S012. 01584_ Lgt. Ion Engine destroyed. Map ----- +----------------------------------------------------+ | ?????????????????????????????????????????????????? | | ?????????????????????????????????????????????????? | | ?????????????????????????????????????????????????? | | ?????????????????????????????????????????????????? | | ?????????????????????????????????????????????????? | | ?????????????????????????????????????????????????? | | ?????????????????????????????????????????????????? | | ?????????????????????????????????????????????????? | | ?????????????????????????? ????????????????????? | | ?????????????????????????? ????????????????????? | | ????????????????????????? "???????????????????? | | ?????????????????????????" T???????????????????? | | ?????????????????##??###?# g"???????????????????? | | ????????????????? ? ?# #???????????????????? | | ?????########???# ?? ## #???????????????????? | | ?????# ##### ?? ## +???????????????????? | | ????##! ## """ ## #???????????????????? | | ????# """ ## """ ## #???????????????????? | | ????# =*" ## """ ## #???????????????????? | | ????# "!!" ## Y ## #???????????????????? | | ????# "?!" ## """ ## #???????????????????? | | ????## "??" ## """ ## #???????????????????? | | ?????# """" ## """ ## #???????????????????? | | ?????# ## # ##??????????????????? | | ????######+####### # # #??????????????????? | | ????# r @ #??????????????????? | | ????# +??????????????????? | | ????# #??????????????????? | | ????######+####### # #??????????????????? | | ?????# #?## # ######??????????????????? | | ?????# #?#########???????????????????????? | | ?????# ##????????????????????????????????? | | ?????# """ """ T#????????????????????????????????? | | ?????# """ """ ##????????????????????????????????? | | ?????# """ """ T#????????????????????????????????? | | ?????# ##????????????????????????????????? | | ?????# #?????????????????????????????????? | | ?????###########?????????????????????????????????? | | ?????????????????????????????????????????????????? | | | | | | | | | | | | | | | | | | | | | | | +----------------------------------------------------+ Best States ------------- Heat Dissipation 38 Energy Generation 10 Energy Capacity 125 Matter Stores 300 Matter Capacity 300 Sight Range 16 Terrain Scan Density 10 Core Shielding 20 Evasion (%) 50 Targeting Accuracy 6 Item Schematics ----------------- None Robot Schematics ------------------ None Fabricated ------------ Nothing Alien Tech Used ----------------- None Achievements -------------- Crack Shot One Hack Too Far Shopping List Uninvited Guest Challenges ------------ None Game ------ Seed BladePowerFacilitator Manual? 0 Play Time 00:16:27 Cumulative 0.2 hours Start 2024.04.12 @ 02:33:50 End 2024.04.12 @ 03:02:29 Sessions 1 Manual Loads 0 Difficulty Rogue Special Mode None Game No. 1 Rogue 1 Adventurer 0 Explorer 0 Win Type - Total 0 Types 0/0/0/0/0/0/0/0/0 Lore% 0 Gallery% 1 Achievement% 1 Wizard Run 0 Options --------- Layout 1 ASCII 0 Keyboard 0 Movement Mouse Keybinds 0 Fullscreen 1 Font 24/Terminus Map View 50x35 Zoom Use 0% Tactical HUD 1 Map Filters NONE Filters NONE Steam 0 RUN: 42365816-51a1-4db9-bf2c-514c7999820d